fUST/lending_fUST_20240921
["ID","MTS","AMOUNT","RATE_DAILY","PERIOD"]
[338667429,1726861851945,-500.0,0.00015942,2]
[338667430,1726861851956,-412.48669,0.00015942,2]
[338667431,1726861851966,-500.0,0.00015942,2]
[338667432,1726861851976,-412.48669,0.00015942,2]
[338667433,1726861851986,-500.0,0.00015942,2]
[338667435,1726861851995,-389.34,0.00015942,2]
[338667436,1726861852004,-420.0,0.00015942,2]
[338667437,1726861852013,-151.0,0.00015942,2]
[338667438,1726861852022,-584.16839939,0.00015942,2]
[338667439,1726861852035,-500.0,0.00015942,2]
[338667441,1726861852045,-1000.0,0.00015942,2]
[338667442,1726861852053,-1000.0,0.00015942,2]
[338667443,1726861852062,-1000.0,0.00015942,2]
[338667444,1726861852074,-1071.54041917,0.00015942,2]
[338667445,1726861852083,-251.54355424,0.00015942,2]
[338667446,1726861852093,-318.18412294,0.00015942,2]
[338667447,1726861852105,-151.0,0.00015949,2]
[338667448,1726861852116,-151.0,0.00015949,2]
[338667449,1726861852126,-151.0,0.00015949,2]
[338667450,1726861852135,-151.0,0.00015949,2]
[338667451,1726861852144,-151.0,0.00015949,2]
[338667452,1726861852153,-151.0,0.00015949,2]
[338667453,1726861852163,-219.533465,0.00015949,2]
[338667454,1726861852174,-219.533465,0.00015949,2]
[338667455,1726861852183,-194.881622,0.00015949,2]
[338667456,1726861852193,-194.881622,0.00015949,2]
[338667457,1726861852204,-202.243304,0.00015949,2]
[338667458,1726861852214,-202.243304,0.00015949,2]
[338667459,1726861852225,-160.0,0.00015949,2]
[338667460,1726861852236,-210.484261,0.0001595,2]
[338667461,1726861852246,-210.484261,0.0001595,2]
[338667462,1726861852255,-203.184683,0.0001595,2]
[338667463,1726861852265,-151.0,0.0001595,2]
[338667464,1726861852275,-500.0,0.0001595,2]
[338667465,1726861852284,-526.66,0.0001595,2]
[338667466,1726861852293,-151.0,0.0001595,2]
[338667467,1726861852302,-500.0,0.0001595,2]
[338667468,1726861852312,-438.00006726,0.0001595,2]
[338667469,1726861852321,-500.0,0.0001595,2]
[338667471,1726861852331,-500.0,0.0001595,2]
[338667472,1726861852340,-563.18063764,0.0001595,2]
[338667473,1726861852350,-500.0,0.0001595,2]
[338667474,1726861852359,-578.26,0.0001595,2]
[338667475,1726861852368,-500.0,0.0001595,2]
[338667476,1726861852378,-500.0,0.0001595,2]
[338667477,1726861852388,-500.0,0.0001595,2]
[338667478,1726861852398,-151.292781,0.0001595,2]
[338667479,1726861852407,-151.292781,0.0001595,2]
[338667480,1726861852416,-500.0,0.0001595,2]
[338667481,1726861852425,-500.0,0.0001595,2]
[338667482,1726861852436,-500.0,0.0001595,2]
[338667483,1726861852446,-500.0,0.0001595,2]
[338667484,1726861852456,-500.0,0.0001595,2]
[338667485,1726861852465,-500.0,0.0001595,2]
[338667486,1726861852475,-500.0,0.0001595,2]
[338667487,1726861852486,-500.0,0.0001595,2]
[338667488,1726861852496,-500.0,0.0001595,2]
[338667489,1726861852505,-500.0,0.0001595,2]
[338667490,1726861852514,-500.0,0.0001595,2]
[338667491,1726861852523,-500.0,0.0001595,2]
[338667492,1726861852533,-500.0,0.0001595,2]
[338667493,1726861852542,-151.0,0.0001595,2]
[338667494,1726861852551,-498.31916212,0.0001595,2]
[338667495,1726861852560,-151.0,0.0001595,2]
[338667496,1726861852570,-500.0,0.0001595,2]
[338667497,1726861852579,-500.0,0.0001595,2]
[338667498,1726861852588,-500.0,0.0001595,2]
[338667499,1726861852597,-504.93,0.0001595,2]
[338667500,1726861852606,-599.04,0.0001595,2]
[338667501,1726861852618,-500.0,0.0001595,2]
[338667502,1726861852629,-500.0,0.0001595,2]
[338667503,1726861852639,-500.0,0.0001595,2]
[338667504,1726861852649,-500.0,0.0001595,2]
[338667505,1726861852662,-465.53355,0.0001595,2]
[338667506,1726861852671,-465.53355,0.0001595,2]
[338667507,1726861852680,-1128.579691,0.0001595,2]
[338667508,1726861852690,-500.0,0.0001595,2]
[338667509,1726861852700,-1128.579691,0.0001595,2]
[338667510,1726861852710,-500.0,0.0001595,2]
[338667511,1726861852722,-197.69,0.0001595,2]
[338667512,1726861852733,-812.5,0.0001595,2]
[338667513,1726861852742,-535.96,0.0001595,2]
[338667514,1726861852751,-500.0,0.0001595,2]
[338667515,1726861852761,-500.0,0.0001595,2]
[338667516,1726861852771,-500.0,0.0001595,2]
[338667517,1726861852781,-500.0,0.0001595,2]
[338667518,1726861852792,-257.24,0.0001595,2]
[338667519,1726861852802,-500.0,0.0001595,2]
[338667520,1726861852812,-500.0,0.0001595,2]
[338667521,1726861852822,-500.0,0.0001595,2]
[338667523,1726861852832,-500.0,0.0001595,2]
[338667524,1726861852842,-500.0,0.0001595,2]
[338667525,1726861852852,-500.0,0.0001595,2]
[338667526,1726861852861,-500.0,0.0001595,2]
[338667527,1726861852870,-500.0,0.0001595,2]
[338667528,1726861852879,-500.0,0.0001595,2]
[338667529,1726861852889,-280.49,0.0001595,2]
[338667530,1726861852898,-500.0,0.0001595,2]
[338667531,1726861852907,-629.25572291,0.0001595,2]
[338667532,1726861852916,-500.0,0.0001595,2]
[338667533,1726861852925,-542.46376877,0.0001595,2]
[338667534,1726861852935,-553.08680874,0.0001595,2]
[338667535,1726861852944,-500.0,0.0001595,2]
[338667536,1726861852953,-500.0,0.0001595,2]
[338667537,1726861852963,-500.0,0.0001595,2]
[338667538,1726861852972,-636.19,0.0001595,2]
[338667539,1726861852982,-500.0,0.0001595,2]
[338667541,1726861852991,-500.0,0.0001595,2]
[338667542,1726861853001,-500.0,0.0001595,2]
[338667543,1726861853011,-500.0,0.0001595,2]
[338667544,1726861853020,-500.0,0.0001595,2]
[338667545,1726861853030,-500.0,0.0001595,2]
[338667546,1726861853039,-500.0,0.0001595,2]
[338667547,1726861853048,-620.53,0.0001595,2]
[338667548,1726861853058,-500.0,0.0001595,2]
[338667549,1726861853067,-500.0,0.0001595,2]
[338667550,1726861853076,-500.0,0.0001595,2]
[338667551,1726861853085,-500.0,0.0001595,2]
[338667552,1726861853094,-500.0,0.0001595,2]
[338667553,1726861853103,-500.0,0.0001595,2]
[338667554,1726861853113,-500.0,0.0001595,2]
[338667555,1726861853122,-500.0,0.0001595,2]
[338667556,1726861853131,-500.0,0.0001595,2]
[338667557,1726861853140,-500.0,0.0001595,2]
[338667558,1726861853149,-500.0,0.0001595,2]
[338667559,1726861853158,-500.0,0.0001595,2]
[338667560,1726861853167,-500.0,0.0001595,2]
[338667561,1726861853176,-500.0,0.0001595,2]
[338667562,1726861853186,-500.0,0.0001595,2]
[338667563,1726861853195,-500.0,0.0001595,2]
[338667564,1726861853204,-500.0,0.0001595,2]
[338667565,1726861853212,-500.0,0.0001595,2]
[338667566,1726861853222,-424.71,0.0001595,2]
[338667567,1726861853231,-500.0,0.0001595,2]
[338667568,1726861853240,-500.0,0.0001595,2]
[338667569,1726861853250,-1302.0,0.0001595,2]
[338667570,1726861853260,-500.0,0.0001595,2]
[338667571,1726861853269,-500.0,0.0001595,2]
[338667572,1726861853279,-500.0,0.0001595,2]
[338667573,1726861853289,-500.0,0.0001595,2]
[338667574,1726861853298,-500.0,0.0001595,2]
[338667575,1726861853308,-500.0,0.0001595,2]
[338667576,1726861853317,-500.0,0.0001595,2]
[338667577,1726861853326,-500.0,0.0001595,2]
[338667578,1726861853336,-500.0,0.0001595,2]
[338667579,1726861853345,-500.0,0.0001595,2]
[338667581,1726861853355,-276.72001185,0.0001595,2]
[338667582,1726861853364,-500.0,0.0001595,2]
[338667583,1726861853374,-866.38,0.0001595,2]
[338667584,1726861853383,-500.0,0.0001595,2]
[338667585,1726861853393,-500.0,0.0001595,2]
[338667586,1726861853402,-500.0,0.0001595,2]
[338667587,1726861853412,-500.0,0.0001595,2]
[338667588,1726861853421,-500.0,0.0001595,2]
[338667589,1726861853430,-171.13255659,0.0001595,2]
[338667590,1726861853439,-593.68,0.0001595,2]
[338667591,1726861853449,-500.0,0.0001595,2]
[338667592,1726861853458,-500.0,0.0001595,2]
[338667593,1726861853467,-500.0,0.0001595,2]
[338667594,1726861853476,-500.0,0.0001595,2]
[338667595,1726861853486,-244.71,0.0001595,2]
[338667596,1726861853495,-500.0,0.0001595,2]
[338667597,1726861853504,-500.0,0.0001595,2]
[338667598,1726861853514,-504.42,0.0001595,2]
[338667599,1726861853523,-625.64,0.0001595,2]
[338667600,1726861853667,-599.94,0.0001595,2]
[338667601,1726861853678,-837.620688,0.0001595,2]
[338667603,1726861853689,-837.620688,0.0001595,2]
[338667604,1726861853699,-337.89,0.0001595,2]
[338667605,1726861853708,-500.0,0.0001595,2]
[338667606,1726861853717,-500.0,0.0001595,2]
[338667607,1726861853726,-998.987513,0.0001595,2]
[338667608,1726861853735,-998.987513,0.0001595,2]
[338667609,1726861853745,-504.24929641,0.0001595,2]
[338667610,1726861853754,-500.0,0.0001595,2]
[338667611,1726861853763,-500.0,0.0001595,2]
[338667612,1726861853773,-151.0,0.0001595,2]
[338667613,1726861853784,-500.0,0.0001595,2]
[338667614,1726861853793,-500.0,0.0001595,2]
[338667615,1726861853803,-500.0,0.0001595,2]
[338667616,1726861853812,-500.0,0.0001595,2]
[338667617,1726861853821,-500.0,0.0001595,2]
[338667618,1726861853831,-500.0,0.0001595,2]
[338667619,1726861853840,-500.0,0.0001595,2]
[338667620,1726861853850,-500.0,0.0001595,2]
[338667621,1726861853859,-500.0,0.0001595,2]
[338667622,1726861853869,-500.0,0.0001595,2]
[338667623,1726861853878,-500.0,0.0001595,2]
[338667624,1726861853887,-2280.61,0.0001595,2]
[338667625,1726861853897,-669.48,0.0001595,2]
[338667626,1726861853906,-500.0,0.0001595,2]
[338667627,1726861853915,-500.0,0.0001595,2]
[338667628,1726861853924,-726.3,0.0001595,2]
[338667629,1726861853933,-1026.75,0.0001595,2]
[338667630,1726861853943,-500.0,0.0001595,2]
[338667631,1726861853952,-620.51050155,0.0001595,2]
[338667632,1726861853961,-1084.68,0.0001595,2]
[338667633,1726861853970,-500.0,0.0001595,2]
[338667634,1726861853979,-500.0,0.0001595,2]
[338667635,1726861853988,-907.23,0.0001595,2]
[338667636,1726861853999,-151.0,0.0001595,2]
[338667638,1726861854009,-500.0,0.0001595,2]
[338667639,1726861854021,-187.058273,0.0001595,2]
[338667640,1726861854034,-500.0,0.0001595,2]
[338667641,1726861854045,-569.075854,0.0001595,2]
[338667642,1726861854057,-187.058273,0.0001595,2]
[338667643,1726861854066,-572.31,0.0001595,2]
[338667644,1726861854075,-569.075854,0.0001595,2]
[338667645,1726861854086,-500.0,0.0001595,2]
[338667646,1726861854096,-1116.57,0.0001595,2]
[338667647,1726861854105,-500.0,0.0001595,2]
[338667648,1726861854114,-903.27,0.0001595,2]
[338667649,1726861854123,-500.0,0.0001595,2]
[338667650,1726861854132,-500.0,0.0001595,2]
[338667651,1726861854142,-500.0,0.0001595,2]
[338667652,1726861854151,-500.0,0.0001595,2]
[338667653,1726861854161,-500.0,0.0001595,2]
[338667654,1726861854170,-653.87,0.0001595,2]
[338667655,1726861854179,-500.0,0.0001595,2]
[338667656,1726861854188,-500.0,0.0001595,2]
[338667657,1726861854198,-1050.13,0.0001595,2]
[338667658,1726861854207,-500.0,0.0001595,2]
[338667659,1726861854216,-500.0,0.0001595,2]
[338667660,1726861854227,-500.0,0.0001595,2]
[338667661,1726861854236,-667.12,0.0001595,2]
[338667662,1726861854246,-571.23651299,0.0001595,2]
[338667663,1726861854255,-596.06,0.0001595,2]
[338667664,1726861854265,-402.802275,0.0001595,2]
[338667665,1726861854274,-500.0,0.0001595,2]
[338667666,1726861854286,-151.0,0.0001595,2]
[338667667,1726861854296,-500.0,0.0001595,2]
[338667668,1726861854305,-402.802275,0.0001595,2]
[338667669,1726861854315,-500.0,0.0001595,2]
[338667670,1726861854324,-280.629572,0.0001595,2]
[338667672,1726861854334,-603.76098229,0.0001595,2]
[338667673,1726861854343,-500.0,0.0001595,2]
[338667674,1726861854353,-570.9,0.0001595,2]
[338667675,1726861854365,-152.007061,0.0001595,2]
[338667676,1726861854377,-500.0,0.0001595,2]
[338667677,1726861854387,-280.629572,0.0001595,2]
[338667678,1726861854398,-152.007061,0.0001595,2]
[338667679,1726861854409,-500.0,0.0001595,2]
[338667680,1726861854419,-500.0,0.0001595,2]
[338667681,1726861854430,-500.0,0.0001595,2]
[338667682,1726861854441,-500.0,0.0001595,2]
[338667683,1726861854451,-500.0,0.0001595,2]
[338667684,1726861854460,-473.23230092,0.0001595,2]
[338667685,1726861854469,-163.87938171,0.0001595,2]
[338667686,1726861854479,-500.0,0.0001595,2]
[338667687,1726861854490,-500.0,0.0001595,2]
[338667688,1726861854502,-500.0,0.0001595,2]
[338667689,1726861854511,-500.0,0.0001595,2]
[338667690,1726861854521,-874.555519,0.0001595,2]
[338667691,1726861854531,-874.555519,0.0001595,2]
[338667692,1726861854540,-500.0,0.0001595,2]
[338667693,1726861854550,-500.0,0.0001595,2]
[338667694,1726861854559,-500.0,0.0001595,2]
[338667695,1726861854568,-500.0,0.0001595,2]
[338667696,1726861854578,-500.0,0.0001595,2]
[338667697,1726861854589,-500.0,0.0001595,2]
[338667698,1726861854598,-716.71,0.0001595,2]
[338667699,1726861854607,-500.0,0.0001595,2]
[338667700,1726861854619,-412.48669,0.0001595,2]
[338667702,1726861854628,-500.0,0.0001595,2]
[338667703,1726861854638,-500.0,0.0001595,2]
[338667704,1726861854647,-412.48669,0.0001595,2]
[338667705,1726861854657,-500.0,0.0001595,2]
[338667706,1726861854666,-500.0,0.0001595,2]
[338667708,1726861854675,-151.0,0.0001595,2]
[338667709,1726861854685,-500.0,0.0001595,2]
[338667710,1726861854695,-581.36,0.0001595,2]
[338667711,1726861854704,-500.0,0.0001595,2]
[338667712,1726861854714,-500.0,0.0001595,2]
[338667713,1726861854723,-500.0,0.0001595,2]
[338667714,1726861854732,-500.0,0.0001595,2]
[338667715,1726861854742,-500.0,0.0001595,2]
[338667716,1726861854751,-334.16401562,0.0001595,2]
[338667717,1726861854760,-500.0,0.0001595,2]
[338667718,1726861854770,-500.0,0.0001595,2]
[338667719,1726861854780,-500.0,0.0001595,2]
[338667720,1726861854789,-249.70408648,0.0001596,2]
[338667721,1726861854798,-500.0,0.0001596,2]
[338667722,1726861854806,-501.83071564,0.0001596,2]
[338667723,1726861854816,-500.0,0.0001596,2]
[338667724,1726861854825,-469.63465736,0.0001596,2]
[338667725,1726861854834,-500.0,0.0001596,2]
[338667726,1726861854843,-500.0,0.0001596,2]
[338667727,1726861854852,-247.22233698,0.0001596,2]
[338667728,1726861854861,-500.0,0.0001596,2]
[338667729,1726861854870,-500.0,0.0001596,2]
[338667730,1726861854879,-500.0,0.0001596,2]
[338667731,1726861854888,-313.04695056,0.0001596,2]
[338667732,1726861854898,-500.0,0.0001596,2]
[338667733,1726861854907,-500.0,0.0001596,2]
[338667734,1726861854917,-151.757561,0.0001596,2]
[338667735,1726861854926,-500.0,0.0001596,2]
[338667736,1726861854935,-151.0,0.0001596,2]
[338667737,1726861854944,-500.0,0.0001596,2]
[338667738,1726861854954,-500.0,0.0001596,2]
[338667739,1726861854964,-151.0,0.0001596,2]
[338667740,1726861854974,-151.0,0.0001596,2]
[338667742,1726861854983,-151.0,0.0001596,2]
[338667743,1726861854993,-219.533465,0.0001596,2]
[338667744,1726861855002,-219.533465,0.0001596,2]
[338667745,1726861855011,-194.881622,0.0001596,2]
[338667746,1726861855020,-194.881622,0.0001596,2]
[338667747,1726861855030,-202.243304,0.0001596,2]
[338667748,1726861855039,-202.243304,0.0001596,2]
[338667749,1726861855048,-151.0,0.00015969,2]
[338667750,1726861855057,-151.0,0.00015969,2]
[338667751,1726861855067,-151.0,0.00015969,2]
[338667752,1726861855076,-903.77,0.0001597,2]
[338667753,1726861855086,-151.0,0.00015971,2]
[338667754,1726861855095,-151.125311,0.00015971,2]
[338667755,1726861855104,-151.0,0.00015971,2]
[338667756,1726861855114,-876.351473,0.00015971,2]
[338667757,1726861855122,-151.0,0.00015971,2]
[338667758,1726861855131,-151.0,0.00015971,2]
[338667759,1726861855140,-500.0,0.00015973,2]
[338667760,1726861855150,-500.0,0.00015973,2]
[338667761,1726861855159,-500.0,0.00015973,2]
[338667763,1726861855169,-500.0,0.00015973,2]
[338667764,1726861855178,-288.2482218,0.00015973,2]
[338667765,1726861855187,-500.0,0.00015973,2]
[338667766,1726861855196,-500.0,0.00015973,2]
[338667767,1726861855205,-500.0,0.00015973,2]
[338667768,1726861855215,-513.64292553,0.00015973,2]
[338667769,1726861855224,-500.0,0.00015973,2]
[338667770,1726861855233,-500.0,0.00015973,2]
[338667771,1726861855243,-500.0,0.00015973,2]
[338667772,1726861855252,-382.37159413,0.00015973,2]
[338667773,1726861855263,-500.0,0.00015979,2]
[338667774,1726861855273,-500.0,0.00015979,2]
[338667775,1726861855283,-500.0,0.00015979,2]
[338667776,1726861855292,-500.0,0.00015979,2]
[338667777,1726861855301,-500.0,0.00015979,2]
[338667779,1726861855311,-500.0,0.00015979,2]
[338667780,1726861855320,-500.0,0.00015979,2]
[338667781,1726861855329,-500.0,0.00015979,2]
[338667782,1726861855339,-500.0,0.00015979,2]
[338667783,1726861855349,-500.0,0.00015979,2]
[338667784,1726861855359,-500.0,0.00015979,2]
[338667785,1726861855368,-500.0,0.00015979,2]
[338667786,1726861855377,-500.0,0.00015979,2]
[338667787,1726861855386,-500.0,0.00015979,2]
[338667788,1726861855395,-610.91,0.00015979,2]
[338667789,1726861855404,-500.0,0.00015979,2]
[338667790,1726861855414,-501.50384832,0.00015979,2]
[338667791,1726861855423,-179.65,0.00015979,2]
[338667792,1726861855432,-500.0,0.00015979,2]
[338667793,1726861855442,-500.0,0.00015979,2]
[338667794,1726861855451,-500.0,0.00015979,2]
[338667796,1726861855460,-618.69205467,0.00015979,2]
[338667797,1726861855470,-500.0,0.00015979,2]
[338667798,1726861855480,-362.56,0.00015979,2]
[338667799,1726861855489,-176.08519079,0.00015979,2]
[338667800,1726861855498,-903.77,0.00015979,2]
[338667802,1726861855508,-500.0,0.00015979,2]
[338667803,1726861855517,-501.58793847,0.00015979,2]
[338667804,1726861855527,-547.03,0.00015979,2]
[338667805,1726861855538,-500.0,0.00015979,2]
[338667806,1726861855547,-553.74710653,0.00015979,2]
[338667807,1726861855556,-501.39,0.00015979,2]
[338667808,1726861855565,-500.0,0.00015979,2]
[338667809,1726861855574,-500.0,0.00015979,2]
[338667810,1726861855583,-500.0,0.00015979,2]
[338667811,1726861855593,-151.0,0.00015979,2]
[338667812,1726861855602,-465.53355,0.00015979,2]
[338667813,1726861855613,-465.53355,0.00015979,2]
[338667814,1726861855622,-1128.579691,0.00015979,2]
[338667815,1726861855631,-1128.579691,0.00015979,2]
[338667816,1726861855641,-837.620688,0.00015979,2]
[338667817,1726861855650,-837.620688,0.00015979,2]
[338667818,1726861855660,-998.987513,0.00015979,2]
[338667819,1726861855669,-998.987513,0.00015979,2]
[338667820,1726861855678,-151.0,0.00015979,2]
[338667821,1726861855689,-151.0,0.00015979,2]
[338667822,1726861855699,-151.0,0.00015979,2]
[338667823,1726861855709,-187.058273,0.00015979,2]
[338667824,1726861855718,-187.058273,0.00015979,2]
[338667825,1726861855727,-569.075854,0.00015979,2]
[338667826,1726861855736,-569.075854,0.00015979,2]
[338667827,1726861855746,-264.363765,0.00015979,2]
[338667828,1726861855756,-402.802275,0.00015979,2]
[338667829,1726861855765,-264.363765,0.00015979,2]
[338667830,1726861855774,-402.802275,0.00015979,2]
[338667831,1726861855785,-151.0,0.00015979,2]
[338667832,1726861855794,-150.112233,0.00016,2]
[338667833,1726861855804,-150.112233,0.00016,2]
[338667834,1726861855814,-213206.64604,0.00016015,2]
[338667836,1726861855824,-420.0,0.00016016,2]
[338667837,1726861855833,-153.0,0.00016055,2]
[338667838,1726861855842,-214.7035103,0.00016055,2]
[338667839,1726861855852,-150.112233,0.000161,2]
[338667840,1726861855862,-150.112233,0.000161,2]
[338667841,1726861855871,-2004.14963,0.00016156,2]
[338667843,1726861855881,-830.4829052,0.00016164,2]
[338667844,1726861855891,-1476.8392526,0.00016175,2]
[338667845,1726861855901,-1000.0,0.000162,2]
[338667846,1726861855910,-150.112233,0.000162,2]
[338667847,1726861855920,-500.0,0.00016206,2]
[338667848,1726861855929,-500.0,0.00016206,2]
[338667849,1726861855938,-500.0,0.00016206,2]
[338667850,1726861855948,-942.42,0.00016206,2]
[338667851,1726861855957,-500.0,0.00016206,2]
[338667852,1726861855966,-500.0,0.00016206,2]
[338667853,1726861855976,-738.19,0.00016206,2]
[338667854,1726861855985,-500.0,0.00016206,2]
[338667855,1726861855994,-500.0,0.00016206,2]
[338667856,1726861856004,-535.98,0.00016206,2]
[338667857,1726861856013,-500.0,0.00016206,2]
[338667858,1726861856022,-500.0,0.00016206,2]
[338667859,1726861856033,-534.67,0.00016206,2]
[338667860,1726861856043,-500.0,0.00016206,2]
[338667861,1726861856052,-580.18,0.00016206,2]
[338667862,1726861856061,-500.0,0.00016206,2]
[338667863,1726861856070,-500.0,0.00016206,2]
[338667864,1726861856080,-500.0,0.00016206,2]
[338667865,1726861856090,-500.0,0.00016206,2]
[338667866,1726861856098,-636.89,0.00016206,2]
[338667867,1726861856108,-500.0,0.00016206,2]
[338667869,1726861856120,-329.35084229,0.00016206,2]
[338667870,1726861856131,-1821.39,0.00016206,2]
[338667871,1726861856140,-500.0,0.00016206,2]
[338667872,1726861856150,-500.0,0.00016206,2]
[338667873,1726861856160,-500.0,0.00016206,2]
[338667875,1726861856170,-500.0,0.00016206,2]
[338667876,1726861856180,-500.0,0.00016206,2]
[338667877,1726861856189,-500.0,0.00016206,2]
[338667878,1726861856199,-1170.8,0.00016206,2]
[338667879,1726861856208,-500.0,0.00016206,2]
[338667880,1726861856218,-500.0,0.00016206,2]
[338667882,1726861856227,-500.0,0.00016206,2]
[338667883,1726861856237,-500.0,0.00016206,2]
[338667884,1726861856247,-151.0,0.00016214,2]
[338667885,1726861856256,-151.292781,0.00016214,2]
[338667886,1726861856266,-151.292781,0.00016214,2]
[338667887,1726861856275,-151.0,0.00016214,2]
[338667888,1726861856286,-151.0,0.00016214,2]
[338667889,1726861856296,-151.0,0.00016214,2]
[338667890,1726861856306,-1603.85,0.00016216,2]
[338667891,1726861856315,-500.0,0.00016216,2]
[338667892,1726861856325,-500.0,0.00016216,2]
[338667893,1726861856334,-634.56925132,0.00016216,2]
[338667894,1726861856343,-500.0,0.00016216,2]
[338667895,1726861856352,-500.0,0.00016216,2]
[338667896,1726861856362,-594.94,0.00016216,2]
[338667897,1726861856371,-611.1,0.00016216,2]
[338667898,1726861856381,-500.0,0.00016216,2]
[338667899,1726861856391,-500.0,0.00016216,2]
[338667900,1726861856400,-916.06,0.00016216,2]
[338667901,1726861856411,-509.7,0.00016216,2]
[338667902,1726861856420,-599.42,0.00016216,2]
[338667903,1726861856429,-500.0,0.00016216,2]
[338667905,1726861856439,-586.37,0.00016216,2]
[338667906,1726861856449,-500.0,0.00016216,2]
[338667907,1726861856458,-1222.61,0.00016216,2]
[338667908,1726861856468,-500.0,0.00016216,2]
[338667909,1726861856478,-734.95,0.00016216,2]
[338667911,1726861856488,-620.95,0.00016216,2]
[338667912,1726861856498,-500.0,0.00016216,2]
[338667913,1726861856507,-151.0,0.00016216,2]
[338667914,1726861856516,-280.629572,0.00016216,2]
[338667915,1726861856525,-500.0,0.00016216,2]
[338667916,1726861856537,-152.007061,0.00016216,2]
[338667918,1726861856547,-280.629572,0.00016216,2]
[338667919,1726861856557,-152.007061,0.00016216,2]
[338667920,1726861856569,-995.07,0.00016216,2]
[338667921,1726861856578,-500.0,0.00016216,2]
[338667922,1726861856588,-874.555519,0.00016216,2]
[338667923,1726861856597,-500.0,0.00016216,2]
[338667924,1726861856607,-874.555519,0.00016216,2]
[338667925,1726861856620,-500.0,0.00016216,2]
[338667926,1726861856629,-412.48669,0.00016216,2]
[338667928,1726861856766,-500.0,0.00016216,2]
[338667929,1726861856778,-412.48669,0.00016216,2]
[338667930,1726861856797,-500.0,0.00016216,2]
[338667932,1726861856807,-151.0,0.00016216,2]
[338667933,1726861856816,-500.0,0.00016216,2]
[338667934,1726861856826,-151.0,0.00016223,2]
[338667935,1726861856835,-151.0,0.00016223,2]
[338667936,1726861856845,-151.0,0.00016223,2]
[338667937,1726861856854,-219.533465,0.00016223,2]
[338667939,1726861856863,-219.533465,0.00016223,2]
[338667940,1726861856872,-194.881622,0.00016223,2]
[338667941,1726861856881,-194.881622,0.00016223,2]
[338667942,1726861856890,-202.243304,0.00016223,2]
[338667943,1726861856900,-202.243304,0.00016223,2]
[338667944,1726861856909,-160.0,0.00016223,2]
[338667945,1726861856918,-500.0,0.00016223,2]
[338667946,1726861856929,-500.0,0.00016223,2]
[338667947,1726861856938,-264.061443,0.00016224,2]
[338667948,1726861856947,-500.0,0.00016224,2]
[338667949,1726861856956,-500.0,0.00016224,2]
[338667950,1726861856966,-500.0,0.00016224,2]
[338667951,1726861856976,-876.351473,0.00016224,2]
[338667952,1726861856986,-500.0,0.00016224,2]
[338667953,1726861856995,-151.0,0.00016224,2]
[338667954,1726861857006,-578.26,0.00016224,2]
[338667955,1726861857016,-500.0,0.00016224,2]